bitfinex-derivatives/quotes_BTCF0:USTF0_20240815
["timestamp","ask_amount","ask_price","bid_price","bid_amount"]
[1723737084619,0.01,59760.0,59759.0,0.3608]
[1723737084825,0.0935122,59760.0,59759.0,0.3608]
[1723737085027,0.4935122,59760.0,59759.0,0.3608]
[1723737085920,0.4835122,59760.0,59759.0,0.3608]
[1723737086231,0.5,59760.0,59754.0,0.00025115]
[1723737086430,0.5,59760.0,59743.0,0.001]
[1723737086431,0.083674,59753.0,59743.0,0.001]
[1723737086732,0.083681,59748.0,59743.0,0.001]
[1723737086931,0.3254,59744.0,59727.0,0.3608]
[1723737087120,0.3254,59744.0,59719.0,0.3608]
[1723737087121,0.3608,59734.0,59719.0,0.3608]
[1723737087335,0.083713,59725.0,59719.0,0.3608]
[1723737087628,0.3608,59734.0,59719.0,0.3608]
[1723737087929,0.3608,59734.0,59717.0,0.00019363]
[1723737087930,0.3608,59723.0,59717.0,0.00019363]
[1723737088324,0.586077,59722.0,59717.0,0.00019363]
[1723737088516,0.50236,59722.0,59720.0,0.00165455]
[1723737088720,0.50236,59721.0,59720.0,0.00165455]
[1723737089128,0.90236,59721.0,59720.0,0.00165455]
[1723737089920,0.90436,59721.0,59720.0,0.00165455]
[1723737090926,0.90436,59721.0,59720.0,0.08537455]
[1723737091428,0.002,59721.0,59720.0,0.44617455]
[1723737093134,0.002,59721.0,59720.0,0.44717455]
[1723737093135,0.001,59721.0,59720.0,0.44717455]
[1723737098437,0.011,59721.0,59720.0,0.44717455]
[1723737099031,0.011,59721.0,59720.0,0.53089455]
[1723737099342,0.011,59721.0,59720.0,0.94001455]
[1723737099633,0.06,59727.0,59726.0,0.083711]
[1723737099944,0.23,59727.0,59726.0,0.444511]
[1723737100536,0.23,59727.0,59726.0,0.44616555]
[1723737100932,0.23,59727.0,59726.0,0.44716555]
[1723737101144,0.23,59727.0,59726.0,0.85627655]
[1723737101834,0.232,59727.0,59726.0,0.85627655]
[1723737102041,0.00788006,59746.0,59732.0,0.083702]
[1723737102234,0.22,59746.0,59741.0,0.3608]
[1723737102439,0.00976916,59761.0,59745.0,0.3254]
[1723737102624,0.00976916,59761.0,59753.0,0.3608]
[1723737102625,0.083669,59757.0,59753.0,0.3608]
[1723737102828,0.083663,59761.0,59753.0,0.3608]
[1723737103137,0.083658,59764.0,59753.0,0.3608]
[1723737103347,0.083675,59752.0,59747.0,0.083681]
[1723737103635,0.3608,59758.0,59751.0,0.00025115]
[1723737103831,0.6908,59758.0,59751.0,0.00025115]
[1723737104232,0.774467,59758.0,59753.0,0.083673]
[1723737104538,0.774467,59758.0,59755.0,0.00165455]
[1723737104840,0.083668,59757.0,59755.0,0.00165455]
[1723737105138,0.595708,59757.0,59755.0,0.00165455]
[1723737105340,0.093668,59757.0,59755.0,0.00165455]
[1723737105539,0.50204,59756.0,59755.0,0.00165455]
[1723737105736,0.50204,59756.0,59755.0,0.001]
[1723737105930,0.52204,59756.0,59755.0,0.001]
[1723737106130,0.02,59756.0,59755.0,0.001]
[1723737106327,0.3718,59758.0,59757.0,0.083668]
[1723737106633,0.89384,59758.0,59757.0,0.083668]
[1723737106835,0.3608,59758.0,59757.0,0.083668]
[1723737107937,0.3608,59758.0,59757.0,0.084668]
[1723737108638,0.3718,59758.0,59757.0,0.085668]
[1723737108842,0.011,59758.0,59757.0,0.446468]
[1723737110037,0.09369016,59765.0,59759.0,0.083664]
[1723737110235,0.07003316,59765.0,59757.0,0.3618]
[1723737110435,0.07003316,59765.0,59760.0,0.083664]
[1723737110837,0.07003316,59765.0,59757.0,0.3628]
[1723737111042,0.07003316,59765.0,59757.0,0.3618]
[1723737111243,0.07003316,59765.0,59762.0,0.083661]
[1723737111553,0.07003316,59765.0,59759.0,0.001]
[1723737111554,0.083661,59763.0,59759.0,0.084665]
[1723737111843,0.06,59763.0,59762.0,0.3608]
[1723737112035,0.06,59763.0,59762.0,0.444461]
[1723737112436,0.06,59763.0,59762.0,0.445461]
[1723737112739,0.06,59763.0,59762.0,0.3618]
[1723737112935,0.14366,59763.0,59762.0,0.3608]
[1723737113140,0.15366,59763.0,59762.0,0.3618]
[1723737113544,1.13932,59763.0,59762.0,0.3618]
[1723737113846,1.13932,59763.0,59757.0,0.001]
[1723737113847,0.167334,59758.0,59757.0,0.001]
[1723737114140,0.167334,59758.0,59754.0,0.083672]
[1723737114141,0.814467,59758.0,59754.0,0.083672]
[1723737114352,0.7308,59758.0,59754.0,0.083672]
[1723737114650,0.083671,59755.0,59754.0,0.083672]
[1723737114836,0.423671,59755.0,59754.0,0.083672]
[1723737115145,0.083675,59753.0,59751.0,0.36105115]
[1723737115451,0.103675,59753.0,59752.0,0.083675]
[1723737115836,0.02,59753.0,59752.0,0.083675]
[1723737116536,0.083675,59752.0,59751.0,0.36205115]
[1723737116742,0.383675,59752.0,59751.0,0.36205115]
[1723737117847,0.30004,59752.0,59751.0,0.36205115]
[1723737118049,0.30004,59752.0,59751.0,0.44472715]
[1723737118253,0.383715,59752.0,59751.0,0.36105115]
[1723737118749,0.390715,59752.0,59751.0,0.36205115]
[1723737118941,0.390715,59752.0,59751.0,0.36305115]
[1723737119547,0.390715,59752.0,59751.0,0.00225115]
[1723737121842,0.892795,59752.0,59751.0,0.00225115]
[1723737122148,0.790715,59752.0,59751.0,0.00225115]
[1723737122545,0.390715,59752.0,59751.0,0.00225115]
[1723737123051,1.33727,59752.0,59751.0,0.00225115]
[1723737123272,0.083692,59740.0,59729.0,0.4939]
[1723737123438,0.083694,59738.0,59732.0,0.083703]
[1723737123640,0.083697,59737.0,59732.0,0.083703]
[1723737123847,0.1,59737.0,59729.0,0.49478]
[1723737124044,0.083701,59734.0,59729.0,0.4939]
[1723737124238,0.083701,59734.0,59729.0,0.3608]
[1723737124239,0.04,59734.0,59729.0,0.3608]
[1723737124440,0.083702,59733.0,59729.0,0.37067663]
[1723737124645,0.093702,59733.0,59729.0,0.37067663]
[1723737124849,0.093702,59733.0,59732.0,0.014]
[1723737125048,0.083702,59733.0,59732.0,0.01396]
[1723737125349,0.113702,59733.0,59732.0,0.01396]
[1723737125551,0.083706,59730.0,59729.0,0.39767663]
[1723737125748,0.103706,59730.0,59729.0,0.39767663]
[1723737125947,0.083706,59730.0,59729.0,0.39767663]
[1723737126144,0.093706,59730.0,59729.0,0.38367663]
[1723737126450,0.083706,59730.0,59729.0,0.38367663]
[1723737126753,0.083746,59730.0,59729.0,0.38367663]
[1723737126956,0.093746,59730.0,59729.0,0.37067663]
[1723737127342,0.083746,59730.0,59729.0,0.37067663]
[1723737127546,0.093746,59730.0,59729.0,0.37067663]
[1723737127760,0.093746,59730.0,59729.0,0.37167663]
[1723737128048,0.177452,59730.0,59729.0,0.3618]
[1723737128252,0.679732,59730.0,59729.0,0.3618]
[1723737128447,0.680732,59730.0,59729.0,0.3668]
[1723737128749,0.680732,59730.0,59729.0,0.3678]
[1723737128959,0.680202,59730.0,59729.0,0.3678]
[1723737130157,0.73008608,59730.0,59729.0,0.3678]
[1723737130351,0.73008608,59730.0,59729.0,0.007]
[1723737130555,0.81379208,59730.0,59729.0,0.007]
[1723737130755,0.81379208,59730.0,59729.0,0.001]
[1723737130756,0.82481559,59730.0,59729.0,0.001]
[1723737130944,1.14073151,59730.0,59729.0,0.001]
[1723737131148,0.25113,59727.0,59726.0,0.00025115]
[1723737131357,0.59113,59727.0,59726.0,0.00025115]
[1723737131655,1.49341,59727.0,59726.0,0.00025115]
[1723737131845,1.76865005,59727.0,59726.0,0.00025115]
[1723737132051,1.32599,59727.0,59726.0,0.00025115]
[1723737132253,0.34,59727.0,59726.0,0.08396215]
[1723737132448,0.34004,59727.0,59726.0,0.08396215]
[1723737132648,0.42375,59727.0,59726.0,0.08396215]
[1723737133560,0.34004,59727.0,59726.0,0.09598689]
[1723737133859,0.34004,59727.0,59726.0,0.09698689]
[1723737134670,0.34704,59727.0,59726.0,0.09698689]
[1723737135652,0.34004,59727.0,59726.0,0.09998689]
[1723737136056,4e-05,59727.0,59726.0,0.18369789]
[1723737136248,0.00025115,59737.0,59736.0,0.083697]
[1723737136452,0.04025115,59737.0,59736.0,0.3257]
[1723737136951,0.04025115,59737.0,59736.0,0.409397]
[1723737138056,0.04725115,59737.0,59736.0,0.411397]
[1723737138950,0.04725115,59737.0,59736.0,0.410397]
[1723737139150,0.04025115,59737.0,59736.0,0.412397]
[1723737140449,0.04025115,59737.0,59736.0,0.42445567]
[1723737144055,0.00025115,59737.0,59736.0,0.09875567]
[1723737144251,0.08394715,59737.0,59736.0,0.01505867]
[1723737145862,0.23394715,59737.0,59736.0,0.01505867]
[1723737146157,0.23394715,59737.0,59736.0,0.003]
[1723737146158,0.59474715,59737.0,59736.0,0.003]
[1723737146363,1.66433915,59737.0,59736.0,0.003]
[1723737147558,1.67638575,59737.0,59736.0,0.003]
[1723737149259,1.75970111,59737.0,59736.0,0.003]
[1723737151467,1.19268975,59737.0,59736.0,0.003]
[1723737152267,1.59268975,59737.0,59736.0,0.003]
[1723737152570,1.27638575,59737.0,59736.0,0.003]
[1723737152765,1.30352066,59737.0,59736.0,0.003]
[1723737153474,1.70352066,59737.0,59736.0,0.003]
[1723737153865,1.96402066,59737.0,59736.0,0.003]
[1723737154064,2.06399468,59737.0,59736.0,0.003]
[1723737154673,2.14769068,59737.0,59736.0,0.003]
[1723737155068,2.04771666,59737.0,59736.0,0.003]
[1723737155269,0.25113,59727.0,59726.0,0.00025115]
[1723737155572,0.64113,59727.0,59726.0,0.00025115]
[1723737155781,0.55742,59727.0,59726.0,0.00025115]
[1723737155962,0.47371,59727.0,59726.0,0.08396215]
[1723737156166,0.47371,59727.0,59726.0,0.00025115]
[1723737156468,0.47375,59727.0,59726.0,0.01025115]
[1723737157876,0.47475,59727.0,59726.0,0.02225115]
[1723737158273,0.47475,59727.0,59726.0,0.10596215]
[1723737158476,0.57077589,59727.0,59726.0,0.10596215]
[1723737158774,0.48706589,59727.0,59726.0,0.10596215]
[1723737159182,0.57077589,59727.0,59726.0,0.02225115]
[1723737159368,0.48706589,59727.0,59726.0,0.02225115]
[1723737159567,0.48706589,59727.0,59726.0,0.10596215]
[1723737160268,0.5538155,59727.0,59726.0,0.10596215]
[1723737160673,0.54149961,59727.0,59726.0,0.10596215]
[1723737161570,0.47475,59727.0,59726.0,0.10596215]
[1723737161971,0.55846,59727.0,59726.0,0.02225115]
[1723737162176,0.47475,59727.0,59726.0,0.02225115]
[1723737162681,0.47475,59727.0,59726.0,0.10596215]
[1723737166182,0.47475,59727.0,59726.0,0.02225115]
[1723737166981,0.55846,59727.0,59726.0,0.02225115]
[1723737167476,1.06074,59727.0,59726.0,0.02225115]
[1723737167678,1.54445,59727.0,59726.0,0.02225115]
[1723737167876,1.06074,59727.0,59726.0,0.02225115]
[1723737168072,1.14445,59727.0,59726.0,0.02225115]
[1723737168373,0.64217,59727.0,59726.0,0.02225115]
[1723737168583,1.14445,59727.0,59726.0,0.02225115]
[1723737168975,0.55846,59727.0,59726.0,0.02225115]
[1723737169177,0.64164,59727.0,59726.0,0.02225115]
[1723737169875,0.55793,59727.0,59726.0,0.02225115]
[1723737170069,1.14392,59727.0,59726.0,0.02225115]
[1723737171681,1.17105788,59727.0,59726.0,0.02225115]
[1723737173581,1.75492374,59727.0,59726.0,0.02225115]
[1723737173784,1.75492374,59727.0,59717.0,0.00019363]
[1723737173785,0.251166,59718.0,59717.0,0.00019363]
[1723737173978,0.98910843,59718.0,59717.0,0.00019363]
[1723737174178,0.98910794,59718.0,59717.0,0.00019363]
[1723737174588,0.90538594,59718.0,59717.0,0.00019363]
[1723737174776,0.35,59718.0,59717.0,0.08391763]
[1723737175275,0.433722,59718.0,59717.0,0.08391763]
[1723737176089,0.433722,59718.0,59717.0,0.09891763]
[1723737176090,0.796522,59718.0,59717.0,0.09891763]
[1723737176889,0.796522,59718.0,59717.0,0.09391763]
[1723737177188,0.96379112,59718.0,59717.0,0.00919363]
[1723737180684,0.880244,59718.0,59717.0,0.00919363]
[1723737182090,0.96380057,59718.0,59717.0,0.00919363]
[1723737182288,0.880244,59718.0,59717.0,0.00919363]
[1723737183184,0.96380368,59718.0,59717.0,0.00919363]
[1723737183692,0.880244,59718.0,59717.0,0.00919363]
[1723737184287,0.519444,59718.0,59717.0,0.00919363]
[1723737184799,0.880244,59718.0,59717.0,0.00919363]
[1723737185897,0.96380368,59718.0,59717.0,0.00919363]
[1723737186395,0.60300368,59718.0,59717.0,0.00919363]
[1723737186588,0.96380368,59718.0,59717.0,0.00919363]
[1723737186991,0.880244,59718.0,59717.0,0.00919363]
[1723737187785,0.96380368,59718.0,59717.0,0.00919363]
[1723737188997,0.880244,59718.0,59717.0,0.00919363]
[1723737189398,0.96380368,59718.0,59717.0,0.00919363]
[1723737193200,0.880244,59718.0,59717.0,0.00919363]
[1723737195596,0.96380368,59718.0,59717.0,0.00919363]
[1723737197303,0.90738517,59718.0,59717.0,0.00919363]
[1723737197602,0.99110717,59718.0,59717.0,0.00919363]
[1723737200607,0.82366317,59718.0,59717.0,0.09291763]
[1723737201202,0.82366317,59718.0,59717.0,0.10516624]
[1723737201400,0.90738517,59718.0,59717.0,0.02144224]
[1723737201596,0.46286317,59718.0,59717.0,0.02144224]
[1723737201898,0.352,59718.0,59717.0,0.10516624]
[1723737203004,0.41894048,59718.0,59717.0,1.01783713]
[1723737203414,0.352,59718.0,59717.0,0.96832624]
[1723737203712,0.352,59718.0,59717.0,0.46596624]
[1723737205105,0.03094048,59722.0,59719.0,0.083721]
[1723737205302,0.08368227,59735.0,59726.0,0.083711]
[1723737205506,0.08368227,59736.0,59735.0,0.083699]
[1723737205701,0.54084151,59749.0,59734.0,0.1972]
[1723737205702,0.08368227,59742.0,59734.0,0.1972]
[1723737205904,0.05013984,59736.0,59734.0,0.1972]
[1723737206099,0.05013984,59740.0,59737.0,0.083695]
[1723737206306,0.33013984,59740.0,59737.0,0.083695]
[1723737206706,0.05013984,59739.0,59738.0,0.083693]
[1723737207099,0.13383184,59740.0,59738.0,0.083693]
[1723737207413,0.05013984,59739.0,59738.0,0.083693]
[1723737208324,0.13383184,59740.0,59738.0,0.083693]
[1723737208611,0.083692,59740.0,59738.0,0.083693]
[1723737209218,0.084692,59740.0,59738.0,0.083693]
[1723737209402,0.005,59739.0,59735.0,0.083699]
[1723737209804,0.083695,59738.0,59735.0,0.083699]
[1723737210711,0.093695,59738.0,59735.0,0.083699]
[1723737211012,0.083695,59738.0,59735.0,0.085699]
[1723737211216,0.01,59738.0,59735.0,0.002]
[1723737211605,0.083697,59736.0,59735.0,0.002]
[1723737211821,0.177394,59736.0,59735.0,0.002]
[1723737212812,0.0837,59734.0,59733.0,0.00025115]
[1723737213019,0.32366014,59734.0,59733.0,0.00025115]
[1723737214219,0.40736014,59734.0,59733.0,0.00025115]
[1723737214618,0.41935925,59734.0,59733.0,0.00025115]
[1723737215418,0.083708,59728.0,59727.0,0.3608]
[1723737215619,0.527416,59728.0,59727.0,0.3608]
[1723737215805,0.527416,59728.0,59718.0,0.45974]
[1723737215806,0.77076014,59728.0,59721.0,0.0119783]
[1723737216128,0.77076014,59728.0,59718.0,0.4589]
[1723737216613,0.083714,59724.0,59718.0,0.4589]
[1723737216919,0.083716,59723.0,59721.0,0.083717]
[1723737217121,0.083717,59722.0,59718.0,0.47102159]
[1723737217420,0.083717,59722.0,59721.0,0.001]
[1723737219505,0.083717,59722.0,59720.0,0.083719]
[1723737219820,0.001,59724.0,59721.0,0.005]
[1723737220008,0.001,59724.0,59723.0,0.444515]
[1723737220213,0.05021129,59729.0,59723.0,0.444515]
[1723737220414,0.05025115,59729.0,59723.0,0.444515]
[1723737220614,0.083708,59728.0,59723.0,0.444515]
[1723737220815,0.083713,59725.0,59723.0,0.444515]
[1723737221322,0.083713,59725.0,59724.0,0.083714]
[1723737221917,0.083714,59724.0,59723.0,0.3618]
[1723737222320,0.313714,59724.0,59723.0,0.001]
[1723737223822,0.313714,59724.0,59723.0,0.003]
[1723737224724,0.313714,59724.0,59723.0,0.002]
[1723737224950,0.314714,59724.0,59723.0,0.003]
[1723737228027,0.36467414,59724.0,59723.0,0.003]
[1723737229122,0.314714,59724.0,59723.0,0.003]
[1723737230627,0.36477465,59724.0,59723.0,0.003]
[1723737230824,0.314714,59724.0,59723.0,0.003]
[1723737232414,0.231,59724.0,59723.0,1.43355]
[1723737232626,0.231,59724.0,59723.0,1.349835]
[1723737233424,0.231,59724.0,59723.0,0.949835]
[1723737234029,0.021,59724.0,59723.0,0.949835]
[1723737234221,0.001,59724.0,59723.0,0.949835]
[1723737234621,0.001,59724.0,59723.0,0.447515]
[1723737235831,0.094714,59724.0,59723.0,0.003]
[1723737236422,0.178428,59724.0,59723.0,0.003]
[1723737236623,0.282328,59724.0,59723.0,0.003]
[1723737237220,0.29436988,59724.0,59723.0,0.003]
[1723737238734,0.21065588,59724.0,59723.0,0.003]
[1723737239035,0.094714,59724.0,59723.0,0.003]
[1723737239937,0.178428,59724.0,59723.0,0.003]
[1723737240127,0.26211027,59724.0,59723.0,0.003]
[1723737240737,0.17839627,59724.0,59723.0,0.003]
[1723737240930,0.26211027,59724.0,59723.0,0.003]
[1723737241135,0.20556525,59724.0,59723.0,0.003]
[1723737241437,0.680748,59724.0,59723.0,0.003]
[1723737241636,0.178428,59724.0,59723.0,0.003]
[1723737242137,0.20556537,59724.0,59723.0,0.003]
[1723737243542,0.167444,59718.0,59717.0,0.00044478]
[1723737243729,0.527444,59718.0,59717.0,0.00044478]
[1723737244136,0.443722,59718.0,59717.0,0.08416878]
[1723737244838,0.444722,59718.0,59717.0,0.09316878]
[1723737245033,0.445722,59718.0,59717.0,0.09416878]
[1723737245233,0.445722,59718.0,59717.0,0.01044478]
[1723737246343,0.085722,59718.0,59717.0,0.09416878]
[1723737246542,0.002,59718.0,59717.0,0.09416878]
[1723737247441,0.01147,59718.0,59717.0,0.09416878]
[1723737248042,0.00147,59718.0,59717.0,0.09416878]
[1723737248840,0.05164154,59718.0,59717.0,0.19956878]
[1723737249145,0.00147,59718.0,59717.0,0.19956878]
[1723737249442,0.41214154,59718.0,59717.0,0.01044478]
[1723737249641,0.083731,59712.0,59705.0,0.04952198]
[1723737249837,0.083741,59705.0,59703.0,0.04952198]
[1723737250143,0.483741,59705.0,59700.0,0.3608]
[1723737250331,0.05014489,59701.0,59700.0,0.3608]
[1723737250642,0.05032997,59701.0,59700.0,0.37283101]
[1723737250831,0.00018508,59701.0,59700.0,0.45657901]
[1723737251633,0.00118508,59701.0,59700.0,0.47057901]
[1723737252247,0.00218508,59701.0,59700.0,0.47057901]
[1723737255841,0.00218508,59701.0,59700.0,1.37309901]
[1723737256048,0.00218508,59701.0,59700.0,1.45684701]
[1723737256244,0.00025115,59706.0,59705.0,0.083741]
[1723737256436,0.00025115,59706.0,59705.0,0.444541]
[1723737257932,0.00025115,59706.0,59705.0,0.451541]
[1723737258139,0.00125115,59706.0,59705.0,0.451541]
[1723737258449,0.00125115,59706.0,59705.0,0.452541]
[1723737258450,0.00225115,59706.0,59705.0,0.452541]
[1723737262152,0.00225115,59706.0,59705.0,0.536282]
[1723737262446,0.00225115,59706.0,59705.0,0.58571604]
[1723737263140,0.00225115,59706.0,59705.0,0.536282]
[1723737265348,0.00225115,59706.0,59705.0,1.438762]
[1723737265749,0.05014489,59713.0,59712.0,0.083731]
[1723737266047,0.10014489,59713.0,59712.0,0.444531]
[1723737266940,0.10014489,59713.0,59712.0,0.445531]
[1723737268341,0.05014489,59713.0,59712.0,0.445531]
[1723737268651,0.001,59713.0,59712.0,0.3628]
[1723737268842,0.001,59713.0,59712.0,0.446531]
[1723737270252,0.001,59713.0,59712.0,0.45863879]
[1723737272440,0.011,59713.0,59712.0,0.45863879]
[1723737273750,0.011,59713.0,59712.0,0.54236979]
[1723737273952,0.001,59713.0,59712.0,0.54236979]
[1723737280354,0.001,59713.0,59712.0,0.59180629]
[1723737280955,0.001,59713.0,59712.0,0.45863879]
[1723737281263,0.011,59713.0,59712.0,0.45863879]
[1723737281959,0.06110766,59713.0,59712.0,0.45863879]
[1723737282263,0.011,59713.0,59712.0,0.45863879]
[1723737282855,0.094729,59713.0,59712.0,0.45863879]
[1723737283363,0.14483666,59713.0,59712.0,0.45863879]
[1723737283758,0.14483666,59713.0,59712.0,0.50807529]
[1723737285252,0.094729,59713.0,59712.0,0.50807529]
[1723737285460,0.094729,59713.0,59712.0,0.45863879]
[1723737286253,0.094729,59713.0,59712.0,0.45916879]
[1723737286958,0.001,59713.0,59712.0,0.45916879]
[1723737287161,0.001,59713.0,59712.0,0.54289979]
[1723737287462,0.001,59713.0,59712.0,0.45916879]
[1723737287865,0.001,59713.0,59712.0,0.56336879]
[1723737288051,0.241,59713.0,59712.0,0.56336879]
[1723737289869,0.241,59713.0,59712.0,0.45916879]
[1723737291961,0.324729,59713.0,59712.0,0.37543779]
[1723737292265,0.39151489,59713.0,59712.0,0.37543779]
[1723737292466,0.324729,59713.0,59712.0,0.37543779]
[1723737293562,0.47542469,59713.0,59712.0,0.37543779]
[1723737293761,0.57492469,59713.0,59712.0,0.44138394]
[1723737293972,0.507958,59713.0,59712.0,0.37543779]
[1723737296177,0.424229,59713.0,59712.0,0.37543779]
[1723737296762,0.184229,59713.0,59712.0,0.45916879]
[1723737297070,0.084729,59713.0,59712.0,0.45916879]
[1723737297571,0.001,59713.0,59712.0,0.45916879]
[1723737297974,0.001,59713.0,59712.0,0.52511494]
[1723737298173,0.001,59713.0,59712.0,0.54289979]
[1723737299673,0.001,59713.0,59712.0,0.45916879]
[1723737299975,0.011,59713.0,59712.0,0.45916879]
[1723737301768,0.011,59713.0,59712.0,0.37543779]
[1723737301769,0.094729,59713.0,59712.0,0.37543779]
[1723737301963,0.094729,59713.0,59712.0,0.44155793]
[1723737302163,0.094729,59713.0,59712.0,0.37543779]
[1723737303565,0.178458,59713.0,59712.0,0.37543779]
[1723737303765,0.178458,59713.0,59712.0,0.36333]
[1723737305163,0.094729,59713.0,59712.0,0.36333]
[1723737305676,0.011,59713.0,59712.0,0.447061]
[1723737307072,0.001,59713.0,59712.0,0.447061]
[1723737307273,0.001,59713.0,59712.0,0.550061]
[1723737307480,0.06795414,59713.0,59712.0,0.550061]
[1723737308673,0.07795414,59713.0,59712.0,0.61618114]
[1723737308876,0.011,59713.0,59712.0,0.550061]
[1723737309071,0.07795514,59713.0,59712.0,0.550061]
[1723737310078,0.06795514,59713.0,59712.0,0.550061]
[1723737310669,0.07795514,59713.0,59712.0,0.447061]
[1723737310866,0.094729,59713.0,59712.0,0.36333]
[1723737311071,0.438958,59713.0,59712.0,0.36333]
[1723737311278,0.438958,59713.0,59712.0,0.41293413]
[1723737311580,0.094729,59713.0,59712.0,0.3628]
[1723737311880,0.094729,59713.0,59712.0,0.446531]
[1723737311881,0.001,59713.0,59712.0,0.446531]
[1723737312080,0.001,59713.0,59712.0,0.49613513]
[1723737312273,0.001,59713.0,59712.0,0.446531]
[1723737314485,0.181,59713.0,59712.0,0.446531]
[1723737320284,0.001,59713.0,59712.0,0.446531]
[1723737321086,0.06795068,59713.0,59712.0,0.446531]
[1723737321593,0.001,59713.0,59712.0,0.446531]
[1723737321780,0.06795068,59713.0,59712.0,0.446531]
[1723737322180,0.001,59713.0,59712.0,0.446531]
[1723737322382,0.06795068,59713.0,59712.0,0.446531]
[1723737322687,0.0512099,59713.0,59712.0,0.613993]
[1723737322887,0.06694228,59726.0,59725.0,0.083713]
[1723737323084,0.06694228,59726.0,59725.0,0.6213]
[1723737323085,0.05019969,59726.0,59725.0,0.6213]
[1723737323285,0.05019969,59728.0,59725.0,1.12358]
[1723737323594,0.05019969,59731.0,59730.0,0.083706]
[1723737323799,0.05019969,59731.0,59730.0,0.13327213]
[1723737324183,0.06694228,59734.0,59732.0,0.083703]
[1723737324383,0.06694228,59735.0,59733.0,0.3608]
[1723737324592,0.01,59735.0,59733.0,0.3608]
[1723737324889,0.15089043,59736.0,59733.0,0.444501]
[1723737325090,0.06694228,59735.0,59734.0,0.0837]
[1723737325487,0.00025115,59736.0,59734.0,0.0837]
[1723737325885,0.08394915,59736.0,59734.0,0.0837]
[1723737326087,0.00025115,59736.0,59735.0,0.083699]
[1723737326477,0.05030493,59736.0,59735.0,0.083699]
[1723737326890,0.00025115,59736.0,59735.0,0.083699]
[1723737327289,0.01425115,59736.0,59735.0,0.083699]
[1723737328687,0.02825115,59736.0,59735.0,0.167398]
[1723737329388,0.02225115,59736.0,59735.0,0.168398]
[1723737329586,0.02225115,59736.0,59735.0,0.169398]
[1723737330389,0.00825115,59736.0,59735.0,0.168398]
[1723737330588,0.00825115,59736.0,59735.0,0.169398]
[1723737330589,0.02025115,59736.0,59735.0,0.169398]
[1723737332691,0.02025115,59736.0,59735.0,0.530198]
[1723737333087,0.00861616,59736.0,59735.0,0.613897]
[1723737334199,0.00861616,59736.0,59735.0,1.116097]
[1723737335191,1e-08,59736.0,59735.0,1.116097]
[1723737336598,1e-08,59736.0,59735.0,0.613897]
[1723737339905,1e-08,59736.0,59735.0,0.612897]
[1723737340090,0.083678,59750.0,59747.0,0.083681]
[1723737340291,0.453678,59750.0,59747.0,0.083681]
[1723737340488,0.37,59750.0,59749.0,0.444479]
[1723737342297,0.38,59750.0,59749.0,0.445479]
[1723737343192,0.38,59750.0,59749.0,0.446479]
[1723737343505,0.383,59750.0,59749.0,0.446479]
[1723737344404,0.383,59750.0,59749.0,0.530158]
[1723737344901,0.013,59750.0,59749.0,0.530158]
[1723737345406,0.013,59750.0,59749.0,0.446479]
[1723737345802,0.013,59750.0,59749.0,0.530158]
[1723737346311,0.013,59750.0,59749.0,0.446479]
[1723737346599,0.013,59750.0,59749.0,0.530158]
[1723737347194,0.013,59750.0,59749.0,0.446479]
[1723737347393,0.013,59750.0,59749.0,0.530158]
[1723737349910,0.013,59750.0,59749.0,0.634258]
[1723737353400,0.023,59750.0,59749.0,0.634258]
[1723737353597,0.013,59750.0,59749.0,0.550579]
[1723737354106,0.013,59750.0,59749.0,0.634258]
[1723737354501,0.013,59750.0,59749.0,0.41236613]
[1723737354707,0.17715282,59750.0,59749.0,0.446479]
[1723737354907,0.1271,59750.0,59749.0,0.446479]
[1723737355109,0.07306257,59750.0,59749.0,0.446479]
[1723737355411,0.023,59750.0,59749.0,0.446479]
[1723737355608,0.013,59750.0,59749.0,0.445479]
[1723737355800,0.023,59750.0,59749.0,0.446479]
[1723737355997,0.024,59750.0,59749.0,0.446479]
[1723737357313,0.024,59750.0,59749.0,0.3628]
[1723737358004,0.107678,59750.0,59749.0,0.3628]
[1723737358400,0.107678,59750.0,59749.0,0.446479]
[1723737358401,0.09094228,59750.0,59749.0,0.446479]
[1723737359204,0.09094228,59750.0,59749.0,0.3628]
[1723737359410,0.024,59750.0,59749.0,0.41224758]
[1723737359709,0.17462028,59750.0,59749.0,0.41224758]
[1723737359915,0.211778,59750.0,59749.0,0.41224758]
[1723737360108,0.27872028,59750.0,59749.0,0.41224758]
[1723737360311,0.27872028,59750.0,59749.0,0.3628]
[1723737360522,0.295456,59750.0,59749.0,0.3628]
[1723737360706,0.211778,59750.0,59749.0,0.3628]
[1723737361710,0.295456,59750.0,59749.0,0.3628]
[1723737361908,0.211778,59750.0,59749.0,0.3628]
[1723737362109,0.713858,59750.0,59749.0,0.002]
[1723737362713,0.211778,59750.0,59749.0,0.002]
[1723737363412,0.65622174,59750.0,59749.0,0.002]
[1723737363807,0.572578,59750.0,59749.0,0.002]
[1723737364005,0.024,59750.0,59749.0,0.189779]
[1723737366208,0.024,59750.0,59749.0,0.190309]
[1723737367013,0.024,59750.0,59749.0,0.357667]
[1723737367212,0.024,59750.0,59749.0,0.464667]
[1723737367701,0.024,59750.0,59749.0,0.573967]
[1723737368104,0.00485507,59750.0,59749.0,0.469867]
[1723737368307,0.01485507,59750.0,59749.0,0.573967]
[1723737368514,0.00485507,59750.0,59749.0,0.573967]
[1723737369218,0.05013793,59755.0,59753.0,0.083673]
[1723737369410,0.05013793,59755.0,59754.0,0.57761135]
[1723737369611,0.05013793,59755.0,59754.0,0.528144]
[1723737370302,0.05013793,59756.0,59755.0,0.083671]
[1723737370503,0.05013793,59756.0,59755.0,0.32090874]
[1723737370706,0.05013793,59758.0,59756.0,0.083669]
[1723737370914,0.05013793,59759.0,59758.0,0.167332]